[Event "3rd Avagyan Memorial 2022"]
[Site "Jermuk"]
[Date "2022.06.27"]
[Round "8.3"]
[White "Gharibyan, Mamikon"]
[Black "Ter-Sahakyan, Samvel"]
[Result "1-0"]
[ECO "E52"]
[WhiteElo "2487"]
[BlackElo "2640"]
[Annotator "TA"]
[PlyCount "141"]
[EventDate "2022.06.20"]
[EventType "tourn"]
[EventCountry "ARM"]
[SourceTitle "playchess.com"]
[Source "ChessBase"]
[SourceQuality "1"]
[TimeControl "40/5400+30:1800+30"]

{[%evp 15,141,0,7,0,0,14,10,0,0,0,0,0,0,0,34,30,31,34,32,39,43,53,49,49,55,38,50,51,54,54,55,13,17,12,13,9,21,0,14,0,40,39,28,0,15,13,40,36,43,32,45,49,50,35,42,36,65,63,81,76,82,68,127,130,146,50,77,77,83,78,83,47,39,47,45,23,91,45,39,37,55,39,39,39,74,77,55,35,70,19,63,0,112,51,51,51,43,0,100,102,326,329,316,242,239,232,315,315,308,238,544,503,876,883,843,802,711,690,839,769,726,693,670,660,614,546,29978,5069]} 1. d4 {[%emt 0:00:03]} Nf6 {[%emt 0:00:05]} 2. c4 {[%emt 0:00:05]} e6 {[%emt 0:00:04]} 3. Nf3 {[%emt 0:00:05]} d5 {[%emt 0:00:03]} 4. Nc3 {[%emt 0:00:04]} Bb4 {[%emt 0:00:09]} 5. e3 {[%emt 0:00:15]} O-O {[%emt 0:00:25]} 6. Bd2 {[%emt 0:00:13]} b6 {[%emt 0:00:11]} 7. cxd5 {[%emt 0:00:30]} exd5 {[%emt 0:00:05]} 8. Bd3 {[%emt 0:00:06]} Bb7 {[%emt 0:02:22]} 9. Qc2 {[%emt 0:00:08] E52: Nimzo-Indian: Rubinstein: 4...0-0 5 Nf3 d5 6 Bd3 b6.} c5 {[%emt 0:06:57]} 10. O-O {[%emt 0:15:30]} Re8 {[%emt 0:03:49] [#]} 11. Rfe1 $146 {[%emt 0:14:55] The position is equal.} ({Predecessor:} 11. dxc5 bxc5 12. a3 Ba5 13. Rfd1 Nc6 14. Na4 c4 15. Bf1 Qc7 16. Nc5 Bxd2 17. Rxd2 {1-0 (44) Goldberg,S (1699)-Witbooi,J (1207) Boksburg 2018}) 11... c4 {[%emt 0:15:34]} 12. Bf1 {[%emt 0:01:32]} Nc6 {[%emt 0:00:46][%cal Bb8c6,Bc6a5,Ba5c4][%mdl 32]} 13. b3 {[%emt 0:03:13]} Rc8 {[%emt 0:19:34]} 14. bxc4 {[%emt 0:05:10]} Na5 {[%emt 0:00:09]} 15. c5 {[%emt 0:04:34]} bxc5 {[%emt 0:00:14]} 16. a3 {[%emt 0:16:23]} Bxc3 {[%emt 0:00:23]} 17. Qxc3 {[%emt 0:01:26]} Nc4 {[%emt 0:02:35]} 18. dxc5 {[%emt 0:00:25]} Nd7 {[%emt 0:16:31]} 19. Reb1 {[%emt 0:05:41]} Nxc5 {[%emt 0:07:14]} 20. Be1 {[%emt 0:00:24]} Bc6 {[%emt 0:03:59]} 21. Qd4 {[%emt 0:09:26]} Ne6 {[%emt 0:00:28]} 22. Qd1 {[%emt 0:01:23]} Qd7 {[%emt 0:07:43]} 23. Bc3 {[%emt 0:08:34]} Ba4 {[%emt 0:00:20]} 24. Qe1 {[%emt 0:00:26]} Nc5 {[%emt 0:03:47]} 25. Nd4 {[%emt 0:00:30]} h6 {[%emt 0:03:59]} 26. Ra2 {[%emt 0:02:14]} Rc7 {[%emt 0:02:03]} 27. h3 {[%emt 0:00:32]} f6 {[%emt 0:01:08]} 28. Be2 {[%emt 0:00:24]} Qf7 {[%emt 0:00:36]} 29. Nf5 {[%emt 0:02:53]} Bd7 {[%emt 0:00:18]} 30. Ng3 {[%emt 0:00:35]} Qe7 {[%emt 0:00:44]} 31. Bb4 {[%emt 0:00:48] A strong pair of Bishops.} Qe5 {[%emt 0:01:21]} 32. Rc2 {[%emt 0:01:10]} Be6 {[%emt 0:00:53]} 33. Bxc5 {[%emt 0:01:50]} Rxc5 {[%emt 0:00:03]} 34. Bd3 {[%emt 0:00:20]} Qc7 {[%emt 0:01:01]} 35. a4 {[%emt 0:02:35]} Bf7 {[%emt 0:00:56]} 36. Nf5 {[%emt 0:00:58]} Qd7 {[%emt 0:00:08][%cal Oc4e5]} 37. Qd1 {[%emt 0:00:51][%cal Of5h6]} Be6 {[%emt 0:01:08]} 38. Qh5 {[%emt 0:01:33][%cal Ob1b7]} Rec8 {[%emt 0:00:47]} (38... Rcc8 $14) 39. Nd4 $16 {[%emt 0:00:55] aiming for Qg6.} Bf7 {[%emt 0:00:27] Prevents Qg6.} 40. Qe2 {[%emt 0:00:00]} (40. Qf5 $16 Qxf5 41. Bxf5) 40... Nd6 {[%emt 0:00:00]} 41. Rxc5 {[%emt 0:02:57]} Rxc5 {[%emt 0:00:50]} 42. Qf3 {[%emt 0:01:18]} Qc7 {[%emt 0:03:36]} 43. Qg3 {[%emt 0:04:28] 0x0.0022fb527df9dp-1022s more active pieces.} Rc3 {[%emt 0:06:33]} 44. Rd1 {[%emt 0:08:33]} a5 {[%emt 0:06:12]} 45. Ne2 {[%emt 0:06:27]} Rc6 {[%emt 0:04:29]} (45... Rxd3 $1 $11 46. Rxd3 Qc2) 46. Rb1 {[%emt 0:01:58]} (46. Bg6 $16) 46... Rb6 {[%emt 0:00:36]} 47. Rc1 {[%emt 0:00:56]} Rc6 {[%emt 0:00:13]} 48. Rxc6 {[%emt 0:00:32]} Qxc6 {[%emt 0:00:01]} 49. Nd4 {[%emt 0:00:10]} Qb6 {[%emt 0:06:30]} 50. Qg4 {[%emt 0:01:46]} Qc7 {[%emt 0:04:23] Against Qd7} 51. Qf4 {[%emt 0:01:18]} (51. Ne6 {seems wilder.} Qc1+ 52. Kh2 g5 53. Nd4) 51... Qb6 {[%emt 0:00:35]} 52. Kh2 {[%emt 0:00:24]} ({Better is} 52. Nb5 $14 Nxb5 53. axb5) 52... Kf8 {[%emt 0:01:11]} 53. Kg1 {[%emt 0:03:16]} (53. Qg4 $14) 53... Nc4 {[%emt 0:00:16]} (53... Kg8 $1 $11) 54. Qf5 {[%emt 0:00:37]} ({White should play} 54. Qg4 $16) 54... g6 $1 $14 {[%emt 0:01:12]} 55. Qc8+ {[%emt 0:00:58]} Kg7 {[%emt 0:00:04]} 56. h4 {[%emt 0:01:11][%cal Oh4h5]} h5 {[%emt 0:00:31]} (56... Qb4 $1 $11 {remains equal.} 57. h5 Qe1+ 58. Kh2 Qxf2 59. Bxg6 Qh4+ 60. Kg1 Qe1+ 61. Kh2 Qh4+ 62. Kg1 Qe1+ 63. Kh2 Qh4+) 57. g4 $36 {[%emt 0:02:09][%cal Bg2g4,Bg4h5][%mdl 2080] White is in control.} Ne5 $2 {[%emt 0:01:11] [#] Loses the game.} (57... hxg4 $16 58. h5 Ne5) 58. gxh5 $1 $18 {[%emt 0:00:29][%cal Oh5h6] White threatens h6+! and mate.} Qb4 {[%emt 0:01:20]} (58... Nxd3 59. h6+ Kh7 60. Qf8 Qb1+ 61. Kg2 Ne1+ 62. Kg3) 59. Bxg6 {[%emt 0:00:52] The board is on fire.} Nxg6 {[%emt 0:00:37]} 60. hxg6 {[%emt 0:00:48][%mdl 4096] Endgame KQB-KQN} Qb1+ {[%emt 0:00:33]} 61. Kh2 {[%emt 0:00:03]} Qxg6 {[%emt 0:00:06]} 62. Qd7 {[%emt 0:01:07]} Kh8 $2 {[%emt 0:00:45]} (62... Qh5 63. Kh3 Kg6) 63. Qd8+ {[%emt 0:00:22]} Kh7 {[%emt 0:00:11]} (63... Kg7 $142 64. Qxa5 Qg4) 64. Qxa5 {[%emt 0:00:32]} Qg4 {[%emt 0:00:47]} 65. Qc7 {[%emt 0:00:24]} Qxh4+ {[%emt 0:00:05]} 66. Kg2 {[%emt 0:00:26]} Qg4+ {[%emt 0:00:32]} 67. Qg3 {[%emt 0:00:08]} Qe4+ {[%emt 0:00:10]} 68. Kh2 {[%emt 0:00:09]} Bg6 {[%emt 0:01:22]} 69. a5 {[%emt 0:00:15][%cal Ba4a5,Ba5a6][%mdl 32] And now Qc7+ would win.} Qe7 {[%emt 0:00:35] Prevents Qc7.} 70. a6 {[%emt 0:00:07] Black must now prevent Qb8.} Qa7 {[%emt 0:00:26] Prevents Qb8.} 71. Ne6 {[%emt 0:00:28] Weighted Error Value: White=0.13 (very precise) /Black=0.24 (precise)} (71. Qh3+ $142 Kg7 72. Qc8 Qe7 73. Qb7 Kf8 74. Qxe7+ Kxe7 75. a7 Bf7 76. a8=Q) 1-0

[Event "3rd Avagyan Memorial 2022"]
[Site "Jermuk"]
[Date "2022.06.27"]
[Round "8.4"]
[White "Nihal Sarin"]
[Black "Tabatabaei, M. Amin"]
[Result "1/2-1/2"]
[ECO "C67"]
[WhiteElo "2646"]
[BlackElo "2650"]
[Annotator "TA"]
[PlyCount "62"]
[EventDate "2022.06.20"]
[EventType "tourn"]
[EventCountry "ARM"]
[SourceTitle "playchess.com"]
[Source "ChessBase"]
[SourceQuality "1"]
[TimeControl "40/5400+30:1800+30"]

{[%evp 18,59,18,19,12,13,18,12,15,22,10,8,8,8,4,7,13,13,8,0,0,0,0,0,11,6,8,0,0,0,0,0,0,0,0,0,0,0,0,0,0,0,0,0]} 1. e4 {[%emt 3:35:30]} e5 {[%emt 0:00:54]} 2. Nf3 {[%emt 0:00:06]} Nc6 {[%emt 0:00:05]} 3. Bb5 {[%emt 0:00:03]} Nf6 {[%emt 0:00:07]} 4. O-O {[%emt 0:00:49][%cal Bh1f1,Bf1e1,Be1e5][%mdl 32]} Nxe4 {[%emt 0:00:07]} 5. Re1 {[%emt 0:00:03]} Nd6 {[%emt 0:00:07]} 6. Nxe5 {[%emt 0:00:05]} Be7 {[%emt 0:00:04]} 7. Bf1 {[%emt 0:00:05]} Nxe5 {[%emt 0:00:06]} 8. Rxe5 {[%emt 0:00:05]} O-O {[%emt 0:00:07]} 9. d4 {[%emt 0:00:03]} Bf6 {[%emt 0:00:09]} 10. Re1 {[%emt 0:00:05] The position is equal.} Re8 {[%emt 0:00:49] C67: Ruy Lopez: Berlin Defence: 4 0-0 Nxe4.} 11. c3 {[%emt 0:01:03]} Rxe1 {[%emt 0:00:56]} 12. Qxe1 {[%emt 0:00:12]} Ne8 {[%emt 0:00:14]} 13. Bf4 {[%emt 0:00:29]} d5 {[%emt 0:00:08]} 14. Bd3 {[%emt 0:00:04]} g6 {[%emt 0:01:18]} 15. Nd2 {[%emt 0:00:06]} Ng7 {[%emt 0:00:11]} 16. Nf3 {[%emt 0:00:10]} Bf5 {[%emt 0:00:44]} 17. Bxf5 {[%emt 0:00:26]} Nxf5 {[%emt 0:00:03]} 18. Qe2 {[%emt 0:00:12]} c6 {[%emt 0:00:23] Against Qb5} 19. Re1 {[%emt 0:00:07]} Ng7 {[%emt 0:00:33]} 20. Be5 {[%emt 0:00:51]} Ne6 {[%emt 0:00:51]} 21. Bxf6 {[%emt 0:00:07]} Qxf6 {[%emt 0:00:05]} 22. Ne5 {[%emt 0:00:04]} Re8 {[%emt 0:00:56]} 23. Ng4 {[%emt 0:01:59]} Qd8 {[%emt 0:00:36]} 24. Qe5 {[%emt 0:00:24] aiming for Nf6+.} Ng7 {[%emt 0:00:08]} 25. Qxe8+ {[%emt 0:00:07]} ({Don't blunder} 25. Nh6+ $2 Kf8 26. Nxf7 Rxe5 $19) 25... Nxe8 {[%emt 0:00:05]} 26. Rxe8+ {[%emt 0:00:10][%mdl 64] [#] Remove Defender} Qxe8 {[%emt 0:00:05][%cal Re8e1]} 27. Nf6+ {[%emt 0:00:05]} Kf8 {[%emt 0:00:05][%cal Re8e1]} 28. Nxe8 {[%emt 0:00:05]} Kxe8 {[%emt 0:00:07]} 29. f4 {[%emt 0:00:05]} f5 {[%emt 0:00:12]} 30. Kf2 {[%emt 0:00:06] [#] An even fight not without its subleties.  Weighted Error Value: White=0.01 (flawless) /Black=0.01 (flawless)} {Predecessor:} a5 $146 31. a4 Ke7 {½-½ (31) Ding,L (2799)-Ma,Q (2645) Hangzhou 2022} 1/2-1/2

[Event "3rd Avagyan Memorial 2022"]
[Site "Jermuk"]
[Date "2022.06.27"]
[Round "8.5"]
[White "Donchenko, Alexander"]
[Black "Nguyen, Thai Dai Van"]
[Result "1/2-1/2"]
[ECO "D45"]
[WhiteElo "2599"]
[BlackElo "2612"]
[Annotator "TA"]
[PlyCount "74"]
[EventDate "2022.06.20"]
[EventType "tourn"]
[EventCountry "ARM"]
[SourceTitle "playchess.com"]
[Source "ChessBase"]
[SourceQuality "1"]
[TimeControl "40/5400+30:1800+30"]

{[%evp 17,74,0,0,0,0,0,0,0,0,0,0,0,13,20,10,18,27,0,0,0,0,0,0,-12,0,0,0,-38,0,-7,0,0,0,-19,0,-43,-41,-44,-64,-81,-89,-90,-118,-48,-65,-383,-88,-106,-79,-120,-47,-68,0,0,0,-1,-3,-2,-4]} 1. d4 {[%emt 0:00:02]} d5 {[%emt 0:02:12]} 2. c4 {[%emt 0:00:19]} e6 {[%emt 0:00:08]} 3. Nc3 {[%emt 0:00:42]} c6 {[%emt 0:00:10]} 4. e3 {[%emt 0:01:08]} Nf6 {[%emt 0:00:17]} 5. Nf3 {[%emt 0:00:17]} Nbd7 {[%emt 0:00:10]} 6. Qc2 {[%emt 0:00:30]} Bd6 {[%emt 0:00:15]} 7. b3 {[%emt 0:00:29]} O-O {[%emt 0:00:46]} 8. Be2 {[%emt 0:00:21]} b6 {[%emt 0:00:13]} 9. O-O {[%emt 0:00:29]} Bb7 {[%emt 0:00:04]} 10. a4 {[%emt 0:00:31]} a5 {[%emt 0:01:13]} 11. Bb2 {[%emt 0:00:40]} Re8 {[%emt 0:02:32]} 12. Rad1 {[%emt 0:06:08]} Qe7 {[%emt 0:00:18]} 13. Bd3 {[%emt 0:19:50]} h6 {[%emt 0:16:19]} 14. Rfe1 {[%emt 0:05:47]} c5 {[%emt 0:07:01]} 15. Nb5 {[%emt 0:10:11]} (15. cxd5 {keeps more tension.} cxd4 16. Nxd4 Nxd5 17. Nxd5 Bxd5 18. Bc4) 15... cxd4 {[%emt 0:00:29]} 16. Nxd6 {[%emt 0:05:19]} ({Reject} 16. Nbxd4 Bb4 17. Rf1 e5 $15) 16... Qxd6 {[%emt 0:00:08]} 17. exd4 {[%emt 0:00:06]} dxc4 {[%emt 0:03:32]} 18. bxc4 {[%emt 0:00:07]} Bxf3 {[%emt 0:05:36]} 19. gxf3 {[%emt 0:00:04]} Rad8 {[%emt 0:04:33]} 20. Qe2 {[%emt 0:07:14]} Nh5 {[%emt 0:06:21]} 21. Qe3 {[%emt 0:01:43][%cal Oc4c5]} Nf4 {[%emt 0:07:47]} 22. Bb1 {[%emt 0:03:10]} (22. c5 $5 Qc7 23. Bb5 $14) 22... Nf8 {[%emt 0:02:32][%cal Oe6e5]} 23. Qe5 {[%emt 0:09:15]} Qb4 {[%emt 0:03:41]} 24. d5 {[%emt 0:06:03][%csl Gb2][%cal Re5g7] [#] Chess con chili.} f6 {[%emt 0:05:33]} 25. Qc3 {[%emt 0:01:10]} (25. Qxf4 $5 {[%cal Rf4c1]} Qxb2 26. Be4 $11) 25... Qd6 {[%emt 0:13:23][%cal Re6d5]} 26. Ba3 {[%emt 0:01:09] A strong pair of Bishops.} Qd7 {[%emt 0:00:31][%cal Re6d5]} 27. Bc1 {[%emt 0:04:09]} N8g6 {[%emt 0:03:41][%cal Re6d5]} 28. Kh1 {[%emt 0:03:29] Hoping for Rg1.} exd5 {[%emt 0:01:03]} 29. Rxe8+ {[%emt 0:04:52]} Rxe8 {[%emt 0:02:06]} 30. Bxg6 {[%emt 0:01:13]} Nxg6 {[%emt 0:00:19]} 31. Qd3 $2 {[%emt 0:00:05][%mdl 8192] [#]} ({White must play} 31. cxd5 $15 Nh4 32. Qc4 Nxf3 33. d6+ Kh8 34. Qd5) 31... Ne5 $2 {[%emt 0:01:20]} (31... Qh3 $1 $19 {and Black stays clearly on top.} 32. Qxd5+ Kh7) 32. Qxd5+ $17 {[%emt 0:00:23]} Qf7 {[%emt 0:00:23]} 33. Rd4 {[%emt 0:04:12]} Rc8 {[%emt 0:00:47]} (33... Qxd5 $17 34. cxd5 Nxf3) 34. Be3 $15 {[%emt 0:00:49]} Nxc4 {[%emt 0:03:28]} (34... Qxd5 $15 35. cxd5 Kf7) 35. Qf5 $1 $11 {[%emt 0:02:18] The position is equal.} Re8 {[%emt 0:01:37]} 36. Bxh6 {[%emt 0:01:37]} Ne5 {[%emt 0:03:37] Prevents Rg4.} 37. Be3 {[%emt 0:00:26]} Qe6 {[%emt 0:01:25] Weighted Error Value: White=0.27 (precise) /Black=0.31} 1/2-1/2

[Event "3rd Avagyan Memorial 2022"]
[Site "Jermuk"]
[Date "2022.06.28"]
[Round "9.1"]
[White "Nguyen, Thai Dai Van"]
[Black "Niemann, Hans Moke"]
[Result "1/2-1/2"]
[ECO "E73"]
[WhiteElo "2612"]
[BlackElo "2656"]
[Annotator "TA"]
[PlyCount "64"]
[EventDate "2022.06.20"]
[EventType "tourn"]
[EventCountry "ARM"]
[SourceTitle "playchess.com"]
[Source "ChessBase"]
[SourceQuality "1"]
[TimeControl "40/5400+30:1800+30"]

{[%evp 12,64,46,16,37,35,34,37,22,43,39,39,42,39,45,51,47,36,57,25,27,33,48,36,75,81,94,86,83,93,99,94,136,0,285,260,283,267,259,223,239,58,72,0,0,0,0,0,0,0,0,0,0,0,0]} 1. d4 {[%emt 0:01:49]} Nf6 {[%emt 0:05:09]} 2. c4 {[%emt 0:00:11]} g6 {[%emt 0:01:51]} 3. Nc3 {[%emt 0:00:11]} Bg7 {[%emt 0:00:07]} 4. e4 {[%emt 0:00:10]} d6 {[%emt 0:00:08]} 5. Be2 {[%emt 0:00:21]} O-O {[%emt 0:00:23]} 6. Be3 {[%emt 0:00:12]} Nc6 {[%emt 0:00:12][%cal Bb8c6,Bc6e5,Be5g4][%mdl 32]} 7. d5 {[%emt 0:01:20]} Ne5 {[%emt 0:00:11] E73: King's Indian: Averbakh Variation without 6...c5.} 8. f4 {[%emt 0:00:05]} Neg4 {[%emt 0:03:25]} 9. Bd2 {[%emt 0:00:07]} Nh6 $1 {[%emt 0:02:52] White is slightly better.} 10. Nf3 {[%emt 0:00:07]} e6 {[%emt 0:02:28]} 11. dxe6 {[%emt 0:11:00]} fxe6 {[%emt 0:01:22]} 12. O-O $36 {[%emt 0:00:15][%mdl 2048] Black is under pressure.} Nf7 {[%emt 0:01:16] [#]} 13. c5 $146 {[%emt 0:13:11]} ({Predecessor:} 13. Qc2 Bd7 14. Bd3 e5 15. fxe5 Nxe5 16. Nxe5 dxe5 17. Nd5 c6 18. Nxf6+ Bxf6 19. c5 {½-½ (56) Juksta,K (2310)-Alexakis,D (2459) Corum 2019}) 13... dxc5 {[%emt 0:04:53]} 14. Qb3 {[%emt 0:00:35]} c6 {[%emt 0:02:59]} 15. a4 {[%emt 0:08:21]} (15. e5 $5 {[%cal Re5f6]} Nd5 16. Ne4 $11) 15... b6 {[%emt 0:07:00]} 16. Bc4 {[%emt 0:02:23]} Qe8 {[%emt 0:00:57]} 17. f5 {[%emt 0:15:31]} (17. e5 $5 {[%cal Re5f6]} Nd5 18. Ne4 $11) 17... gxf5 {[%emt 0:24:02]} 18. exf5 {[%emt 0:00:04]} Nd6 {[%emt 0:04:53]} 19. Rae1 $1 {[%emt 0:03:26][%cal Rf5e6]} ({Much worse is} 19. Bxe6+ $6 Bxe6 20. fxe6 (20. Qxe6+ Qxe6 21. fxe6 Nfe4 $17) 20... c4 $15) 19... Nxc4 {[%emt 0:09:51]} (19... Nxf5 $2 20. Bxe6+ (20. Rxe6 Bxe6 21. Bxe6+ Kh8 $16) 20... Bxe6 21. Rxe6 $18) (19... Nd5 $2 20. Nxd5 cxd5 21. Bxd5 $18) 20. Qxc4 {[%emt 0:00:10][%cal Rf5e6]} a5 {[%emt 0:00:19]} 21. Qb3 {[%emt 0:05:21] White is much more active.} Kh8 {[%emt 0:02:07]} 22. Ng5 {[%emt 0:15:28]} ({Much weaker is} 22. fxe6 $6 Ba6 $11) (22. h3 $16) 22... Ng4 $2 {[%emt 0:04:30][%mdl 8192]} (22... Qd7 $11 23. fxe6 Qxd2) 23. fxe6 $18 {[%emt 0:04:02]} Bd4+ {[%emt 0:00:39]} 24. Kh1 {[%emt 0:00:00] Threatens to win with Nf7+.} Nf2+ {[%emt 0:03:58] [#]} 25. Rxf2 $1 {[%emt 0:00:07][%mdl 512]} Bxf2 {[%emt 0:00:54] [#]} (25... Rxf2 26. Nce4 h6 27. Nf7+ Rxf7 28. exf7 $18) 26. Re4 {[%emt 0:08:19]} (26. Nce4 $1 $18 Bxe1 27. Nf7+ Qxf7 28. exf7 Bxd2 29. Nxd2) 26... Ra7 $1 $14 {[%emt 0:10:57] [#]} 27. Bf4 {[%emt 0:01:37]} (27. Ne2 $1 $16 {And now Qc4 would win.} Bd4 28. Rf4) 27... Bd4 $11 {[%emt 0:01:07] The position is equal.} 28. Rxd4 {[%emt 0:02:49][%mdl 64] Remove Defender} cxd4 {[%emt 0:00:10]} 29. Be5+ {[%emt 0:00:04]} Rg7 $1 {[%emt 0:00:44][%cal Rf8f1]} 30. Nf7+ {[%emt 0:00:32]} Kg8 $1 {[%emt 0:00:06]} (30... Rfxf7 $2 31. exf7 Qf8 32. Ne4 $18) 31. Nh6+ {[%emt 0:00:29]} Kh8 {[%emt 0:00:05][%cal Rf8f1]} 32. Nf7+ {[%emt 0:00:02] Pair of Knights!} Kg8 $1 {[%emt 0:00:04] Weighted Error Value: White=0.25 (precise) /Black=0.22 (precise)} (32... Rfxf7 $2 33. exf7 Qf8 34. Ne4 $18) 1/2-1/2

[Event "3rd Avagyan Memorial 2022"]
[Site "Jermuk"]
[Date "2022.06.28"]
[Round "9.2"]
[White "Tabatabaei, M. Amin"]
[Black "Donchenko, Alexander"]
[Result "1-0"]
[ECO "B23"]
[WhiteElo "2650"]
[BlackElo "2599"]
[Annotator "TA"]
[PlyCount "53"]
[EventDate "2022.06.20"]
[EventType "tourn"]
[EventCountry "ARM"]
[SourceTitle "playchess.com"]
[Source "ChessBase"]
[SourceQuality "1"]
[TimeControl "40/5400+30:1800+30"]

{[%evp 9,53,0,7,-3,-4,-11,0,0,0,0,0,0,24,20,16,16,28,45,70,49,68,65,148,143,141,138,219,213,205,207,215,221,202,209,314,358,322,263,1035,1027,1013,997,954,783,740,709]} 1. e4 {[%emt 0:04:23]} c5 {[%emt 0:00:08]} 2. Nc3 {[%emt 0:00:06]} d6 {[%emt 0:00:58]} 3. d4 {[%emt 0:00:12]} cxd4 {[%emt 0:00:07]} 4. Qxd4 {[%emt 0:00:04]} Nc6 {[%emt 0:00:09]} 5. Qd2 {[%emt 0:00:03]} Nf6 {[%emt 0:05:49]} 6. b3 {[%emt 0:00:44][%cal Bb2b3,Bb3b4,Bb4b5][%mdl 32] B23: Closed Sicilian: Lines without g3.} e6 {[%emt 0:00:07]} 7. Bb2 {[%emt 0:00:05]} d5 {[%emt 0:00:44] outshines the older 7...Be7.} 8. exd5 {[%emt 0:00:09] The position is equal.} exd5 {[%emt 0:00:06]} 9. O-O-O {[%emt 0:00:47]} Be6 {[%emt 0:00:06]} 10. a3 $5 {[%emt 0:00:07][%mdl 4] [#] Leaves trodden paths.} Qa5 $146 {[%emt 0:09:18]} ({Predecessor:} 10... Bc5 11. Nf3 O-O 12. Bd3 Rc8 13. Rhe1 Re8 14. h3 Qa5 15. Nb5 Qxd2+ 16. Rxd2 a6 {½-½ (49) Caruana,F (2819)-Vachier Lagrave,M (2773) Karlsruhe/Baden Baden 2019}) 11. b4 {[%emt 0:05:43]} Qb6 {[%emt 0:00:46]} 12. Nf3 {[%emt 0:21:47]} Bd6 {[%emt 0:09:03]} 13. Bd3 {[%emt 0:00:20]} a5 {[%emt 0:14:02]} 14. b5 {[%emt 0:00:45]} Ne7 {[%emt 0:00:33]} 15. Rhe1 {[%emt 0:01:59] Black must now prevent Ng5.} h6 {[%emt 0:14:36] Inhibits Ng5.} (15... Qc7 $14) 16. Na4 $16 {[%emt 0:04:12]} Qc7 {[%emt 0:00:49]} 17. Kb1 {[%emt 0:00:04]} Bg4 {[%emt 0:04:13] [#]} (17... Rd8 $16) 18. Qe3 $1 $18 {[%emt 0:11:34]} Kf8 {[%emt 0:01:59]} 19. h3 {[%emt 0:09:17]} Nf5 {[%emt 0:03:28] [#]} 20. Qb6 {[%emt 0:00:14]} ({But not} 20. Qe2 $6 Bxf3 21. gxf3 (21. Qxf3 Nh4 $15) 21... Nh4 $16) 20... Bxf3 {[%emt 0:00:16]} 21. gxf3 {[%emt 0:00:01]} Nh4 {[%emt 0:00:43]} (21... Ne7 $142 22. Qxc7 Bxc7 23. Bxf6 gxf6) 22. Bxf6 {[%emt 0:01:19]} gxf6 {[%emt 0:00:09]} 23. Qd4 {[%emt 0:00:04][%csl LRd5,LRf6,LRh4]} Ng6 $2 {[%emt 0:02:51]} (23... Ng2) 24. Bxg6 {[%emt 0:01:36] White is clearly winning.} Be5 {[%emt 0:00:03] [#]} 25. Qxd5 $1 {[%emt 0:00:08][%cal Oa4c5] Hoping for Nc5!} fxg6 {[%emt 0:00:06]} 26. Nc5 {[%emt 0:03:10] Threatening mate with Ne6+.} Qf7 {[%emt 0:00:04]} 27. f4 {[%emt 0:00:06] Weighted Error Value: White=0.02 (flawless) /Black=0.20 (precise)} 1-0

[Event "3rd Avagyan Memorial 2022"]
[Site "Jermuk"]
[Date "2022.06.28"]
[Round "9.3"]
[White "Ter-Sahakyan, Samvel"]
[Black "Nihal Sarin"]
[Result "1/2-1/2"]
[ECO "E05"]
[WhiteElo "2640"]
[BlackElo "2646"]
[Annotator "TA"]
[PlyCount "55"]
[EventDate "2022.06.20"]
[EventType "tourn"]
[EventCountry "ARM"]
[SourceTitle "playchess.com"]
[Source "ChessBase"]
[SourceQuality "1"]
[TimeControl "40/5400+30:1800+30"]

{[%evp 18,55,21,6,6,0,16,0,10,9,10,8,33,27,20,15,29,10,36,31,33,14,11,5,12,0,8,0,16,4,15,0,0,0,5,-1,0,0,0,0]} 1. d4 {[%emt 0:00:03]} d5 {[%emt 0:02:45]} 2. c4 {[%emt 0:00:08]} e6 {[%emt 0:00:03]} 3. Nf3 {[%emt 0:00:08]} Nf6 {[%emt 0:00:06]} 4. g3 {[%emt 0:00:07]} Be7 {[%emt 0:01:12]} 5. Bg2 {[%emt 0:00:07]} O-O {[%emt 0:00:05]} 6. O-O {[%emt 0:00:58]} dxc4 {[%emt 0:00:05]} 7. Qc2 {[%emt 0:01:12]} a6 {[%emt 0:00:23]} 8. a4 {[%emt 0:04:02]} Bd7 {[%emt 0:00:06]} 9. Qxc4 {[%emt 0:00:05]} Bc6 {[%emt 0:00:03]} 10. Bf4 {[%emt 0:01:40]} Bd6 {[%emt 0:02:27] E05: Open Catalan: 5 Nf3 Be7.} 11. Qc1 {[%emt 0:00:20]} a5 {[%emt 0:02:38]} 12. Bd2 {[%emt 0:08:46]} Nbd7 {[%emt 0:26:52]} 13. Nc3 {[%emt 0:06:25]} Qe7 {[%emt 0:21:22]} 14. Qc2 {[%emt 0:16:23] [#]} Bxf3 $146 {[%emt 0:01:21]} ({Predecessor:} 14... Bb4 15. Rfe1 Bxf3 16. Bxf3 c6 17. Rad1 Rad8 18. e4 e5 19. d5 cxd5 20. exd5 Rc8 {½-½ (38) Eljanov,P (2713)-Thybo,J (2479) Reykjavik 2018}) 15. Bxf3 {[%emt 0:00:14]} c6 {[%emt 0:00:03]} 16. Rad1 {[%emt 0:09:16]} Rfd8 {[%emt 0:07:36]} 17. Bc1 {[%emt 0:03:20]} h6 {[%emt 0:05:07]} 18. Bg2 {[%emt 0:02:14]} Nd5 {[%emt 0:01:10]} 19. e3 {[%emt 0:05:32]} N7f6 {[%emt 0:08:00] The position is equal.} 20. Qb3 {[%emt 0:12:50] Hoping for e4.} Nb4 {[%emt 0:00:20]} 21. Nb1 {[%emt 0:00:37]} e5 {[%emt 0:06:45]} 22. Nc3 {[%emt 0:03:06]} exd4 {[%emt 0:02:24]} 23. exd4 {[%emt 0:00:06]} Qd7 {[%emt 0:04:29]} 24. Ne4 {[%emt 0:05:22]} Nxe4 {[%emt 0:01:18]} 25. Bxe4 {[%emt 0:00:02]} Bf8 {[%emt 0:00:37]} 26. Qf3 {[%emt 0:05:35]} Nd5 {[%emt 0:02:02]} 27. Bc2 {[%emt 0:01:30]} g6 {[%emt 0:00:34]} 28. h4 {[%emt 0:04:13] Weighted Error Value: White=0.08 (flawless) /Black=0.07 (flawless)} 1/2-1/2